fUST/lending_fUST_20251006
["ID","MTS","AMOUNT","RATE_DAILY","PERIOD"]
[389521929,1759695036911,-500.0,0.00016986,2]
[389521930,1759695036920,-500.0,0.00016986,2]
[389521931,1759695036930,-500.0,0.00016986,2]
[389521932,1759695036939,-500.0,0.00016986,2]
[389521933,1759695036948,-738.56,0.00016986,2]
[389521934,1759695036957,-620.68943568,0.00016986,2]
[389521935,1759695036966,-500.0,0.00016986,2]
[389521936,1759695036975,-500.0,0.00016986,2]
[389521937,1759695036984,-500.0,0.00016986,2]
[389521938,1759695036992,-539.78,0.00016986,2]
[389521939,1759695037001,-500.0,0.00016986,2]
[389521940,1759695037010,-500.0,0.00016986,2]
[389521941,1759695037019,-1268.4,0.00016986,2]
[389521942,1759695037029,-500.0,0.00016986,2]
[389521943,1759695037038,-1579.18,0.00016986,2]
[389521944,1759695037047,-500.0,0.00016986,2]
[389521945,1759695037056,-500.0,0.00016986,2]
[389521946,1759695037065,-500.0,0.00016986,2]
[389521947,1759695037075,-571.27,0.00016986,2]
[389521948,1759695037084,-500.0,0.00016986,2]
[389521949,1759695037093,-500.0,0.00016986,2]
[389521950,1759695037102,-500.0,0.00016986,2]
[389521951,1759695037111,-500.0,0.00016986,2]
[389521952,1759695037121,-500.0,0.00016986,2]
[389521953,1759695037132,-500.0,0.00016986,2]
[389521954,1759695037141,-1679.3,0.00016986,2]
[389521955,1759695037150,-1039.92,0.00016986,2]
[389521956,1759695037159,-500.0,0.00016986,2]
[389521957,1759695037168,-500.0,0.00016986,2]
[389521958,1759695037177,-500.0,0.00016986,2]
[389521959,1759695037186,-500.0,0.00016986,2]
[389521960,1759695037195,-500.0,0.00016986,2]
[389521961,1759695037204,-592.86,0.00016986,2]
[389521962,1759695037216,-1084.19,0.00016986,2]
[389521963,1759695037224,-500.0,0.00016986,2]
[389521964,1759695037414,-349.48350619,0.00016986,2]
[389521965,1759695037424,-500.0,0.00016986,2]
[389521966,1759695037433,-500.0,0.00016986,2]
[389521967,1759695037443,-500.0,0.00016986,2]
[389521968,1759695037452,-500.0,0.00016986,2]
[389521969,1759695037461,-500.0,0.00016986,2]
[389521970,1759695037470,-606.12,0.00016986,2]
[389521971,1759695037479,-1145.97,0.00016986,2]
[389521972,1759695037488,-1723.13,0.00016986,2]
[389521973,1759695037498,-520.69,0.00016986,2]
[389521974,1759695037508,-500.0,0.00016986,2]
[389521975,1759695037517,-500.0,0.00016986,2]
[389521976,1759695037526,-500.0,0.00016986,2]
[389521977,1759695037535,-504.36,0.00016986,2]
[389521978,1759695037544,-719.73,0.00016986,2]
[389521979,1759695037553,-500.0,0.00016986,2]
[389521980,1759695037562,-863.89,0.00016986,2]
[389521981,1759695037572,-721.64,0.00016986,2]
[389521982,1759695037581,-500.0,0.00016986,2]
[389521983,1759695037590,-707.49,0.00016986,2]
[389521984,1759695037605,-527.97803922,0.00016986,2]
[389521985,1759695037619,-976.74,0.00016986,2]
[389521986,1759695037629,-500.0,0.00016986,2]
[389521987,1759695037639,-511.43,0.00016986,2]
[389521988,1759695037649,-500.0,0.00016986,2]
[389521989,1759695037659,-500.0,0.00016986,2]
[389521990,1759695037669,-500.0,0.00016986,2]
[389521991,1759695037679,-764.12361842,0.00016986,2]
[389522008,1759695038316,-500.0,0.00016438,2]
[389522009,1759695038328,-611.9,0.00016438,2]
[389522010,1759695038338,-500.0,0.00016438,2]
[389522011,1759695038348,-199.47,0.00016712,2]
[389522012,1759695038361,-611.9,0.00016712,2]
[389522013,1759695038370,-500.0,0.00016712,2]
[389522014,1759695038380,-1105.13638158,0.00016986,2]
[389522015,1759695038390,-1547.33,0.00016986,2]
[389522016,1759695038401,-500.0,0.00016986,2]
[389522017,1759695038411,-500.0,0.00016986,2]
[389522018,1759695038420,-500.0,0.00016986,2]
[389522019,1759695038431,-604.66,0.00016986,2]
[389522020,1759695038440,-839.77,0.00016986,2]
[389522021,1759695038450,-583.22,0.00016986,2]
[389522022,1759695038459,-500.0,0.00016986,2]
[389522023,1759695038468,-500.0,0.00016986,2]
[389522024,1759695038478,-500.0,0.00016986,2]
[389522025,1759695038487,-536.42,0.00016986,2]
[389522026,1759695038496,-500.0,0.00016986,2]
[389522027,1759695038506,-599.18,0.00016986,2]
[389522028,1759695038515,-502.23,0.00016986,2]
[389522029,1759695038524,-481.80959482,0.00016986,2]
[389522030,1759695038534,-500.0,0.00016986,2]
[389522031,1759695038544,-1237.88,0.00016986,2]
[389522032,1759695038553,-655.58,0.00016986,2]
[389522033,1759695038563,-1549.5,0.00016986,2]
[389522034,1759695038573,-724.58,0.00016986,2]
[389522035,1759695038582,-1258.7,0.00016986,2]
[389522036,1759695038591,-1537.77,0.00016986,2]
[389522037,1759695038600,-662.32,0.00016986,2]
[389522038,1759695038610,-919.03,0.00016986,2]
[389522039,1759695038619,-881.64,0.00016986,2]
[389522040,1759695038628,-500.0,0.00016986,2]
[389522041,1759695038637,-500.0,0.00016986,2]
[389522042,1759695038647,-766.59,0.00016986,2]
[389522043,1759695038657,-1306.74,0.00016986,2]
[389522044,1759695038666,-824.99,0.00016986,2]
[389522045,1759695038676,-590.06,0.00016986,2]
[389522046,1759695038685,-3252.46,0.00016986,2]
[389522047,1759695038694,-500.0,0.00016986,2]
[389522048,1759695038704,-500.0,0.00016986,2]
[389522049,1759695038714,-500.0,0.00016986,2]
[389522050,1759695038724,-4336.03,0.00016986,2]
[389522051,1759695038734,-500.0,0.00016986,2]
[389522052,1759695038746,-2436.75,0.00016986,2]
[389522053,1759695038757,-751.24,0.00016986,2]
[389522054,1759695038767,-3912.33,0.00016986,2]
[389522055,1759695038777,-678.45,0.00016986,2]
[389522056,1759695038786,-642.43,0.00016986,2]
[389522057,1759695038796,-500.0,0.00016986,2]
[389522058,1759695038805,-4275.21,0.00016986,2]
[389522059,1759695038815,-2964.26,0.00016986,2]
[389522060,1759695038826,-500.0,0.00016986,2]
[389522061,1759695038836,-506.96,0.00016986,2]
[389522062,1759695038846,-923.94,0.00016986,2]
[389522063,1759695038856,-500.0,0.00016986,2]
[389522064,1759695038865,-851.72,0.00016986,2]
[389522065,1759695038875,-2190.96,0.00016986,2]
[389522066,1759695038885,-539.26,0.00016986,2]
[389522067,1759695038894,-2351.75,0.00016986,2]
[389522068,1759695038904,-888.96,0.00016986,2]
[389522069,1759695038914,-500.86,0.00016986,2]
[389522070,1759695038924,-546.79,0.00016986,2]
[389522071,1759695038933,-2122.18,0.00016986,2]
[389522072,1759695038943,-500.0,0.00016986,2]
[389522073,1759695038952,-500.0,0.00016986,2]
[389522074,1759695038962,-1504.64,0.00016986,2]
[389522075,1759695038971,-1247.62,0.00016986,2]
[389522076,1759695038980,-1475.61,0.00016986,2]
[389522077,1759695038989,-2419.8,0.00016986,2]
[389522078,1759695038999,-807.49,0.00016986,2]
[389522079,1759695039008,-500.0,0.00016986,2]
[389522080,1759695039018,-1212.48,0.00016986,2]
[389522081,1759695039027,-500.0,0.00016986,2]
[389522082,1759695039036,-2750.11,0.00016986,2]
[389522083,1759695039046,-852.69,0.00016986,2]
[389522084,1759695039056,-500.0,0.00016986,2]
[389522085,1759695039065,-500.0,0.00016986,2]
[389522086,1759695039075,-656.32,0.00016986,2]
[389522087,1759695039084,-756.76,0.00016986,2]
[389522088,1759695039093,-952.04,0.00016986,2]
[389522089,1759695039103,-4932.75,0.00016986,2]
[389522090,1759695039113,-1018.2,0.00016986,2]
[389522091,1759695039123,-537.82,0.00016986,2]
[389522092,1759695039133,-500.0,0.00016986,2]
[389522093,1759695039142,-500.0,0.00016986,2]
[389522094,1759695039152,-2363.06,0.00016986,2]
[389522095,1759695039162,-500.0,0.00016986,2]
[389522096,1759695039172,-539.14,0.00016986,2]
[389522097,1759695039181,-3195.95,0.00016986,2]
[389522098,1759695039191,-500.0,0.00016986,2]
[389522099,1759695039201,-500.0,0.00016986,2]
[389522100,1759695039214,-730.2,0.00016986,2]
[389522101,1759695039224,-1064.47,0.00016986,2]
[389522102,1759695039234,-500.0,0.00016986,2]
[389522103,1759695039243,-183.18530937,0.00016986,2]
[389522104,1759695039252,-1707.66,0.00016986,2]
[389522105,1759695039261,-1265.83,0.00016986,2]
[389522106,1759695039270,-1011.9,0.00016986,2]
[389522107,1759695039280,-500.0,0.00016986,2]
[389522108,1759695039289,-1070.51,0.00016986,2]
[389522109,1759695039298,-579.1,0.00016986,2]
[389522110,1759695039307,-611.9,0.00016986,2]
[389522111,1759695039316,-500.0,0.00016986,2]
[389522112,1759695039326,-500.0,0.00016986,2]
[389522113,1759695039335,-22029.36959726,0.0001699,2]
[389522114,1759695039344,-348.0,0.00017124,2]
[389522115,1759695039353,-2030.296672,0.00017166,2]
[389522116,1759695039362,-151.0,0.00017166,2]
[389522117,1759695039371,-251.54027301,0.00017166,2]
[389522118,1759695039381,-162.380719,0.00017166,2]
[389522119,1759695039390,-500.0,0.00017166,2]
[389522120,1759695039399,-250.0,0.00017166,2]
[389522121,1759695039408,-151.0,0.00017166,2]
[389522122,1759695039418,-500.0,0.00017166,2]
[389522123,1759695039428,-250.0,0.00017166,2]
[389522124,1759695039438,-500.0,0.00017166,2]
[389522125,1759695039447,-250.0,0.00017166,2]
[389522126,1759695039457,-605.36418013,0.00017166,2]
[389522127,1759695039466,-250.0,0.00017166,2]
[389522128,1759695039483,-250.0,0.00017166,2]
[389522129,1759695039497,-250.0,0.00017166,2]
[389522130,1759695039511,-18603.8837,0.00017166,2]
[389522131,1759695039525,-162.380719,0.00017166,2]
[389522132,1759695039540,-500.0,0.00017166,2]
[389522133,1759695039552,-361.07194209,0.00017166,2]
[389522134,1759695039563,-157.15423862,0.00017221,2]
[389522135,1759695039574,-500.0,0.0001726,2]
[389522136,1759695039588,-500.0,0.0001726,2]
[389522137,1759695039600,-500.0,0.0001726,2]
[389522138,1759695039612,-500.0,0.0001726,2]
[389522139,1759695039632,-502.91,0.0001726,2]
[389522140,1759695039650,-746.59,0.0001726,2]
[389522141,1759695039665,-500.0,0.0001726,2]
[389522142,1759695039678,-500.0,0.0001726,2]
[389522143,1759695039693,-500.0,0.0001726,2]
[389522144,1759695039707,-500.0,0.0001726,2]
[389522145,1759695039722,-500.0,0.0001726,2]
[389522146,1759695039737,-500.0,0.0001726,2]
[389522147,1759695039749,-500.0,0.0001726,2]
[389522148,1759695039761,-738.56,0.0001726,2]
[389522149,1759695039773,-500.0,0.0001726,2]
[389522150,1759695039790,-500.0,0.0001726,2]
[389522151,1759695039804,-500.0,0.0001726,2]
[389522152,1759695039818,-500.0,0.0001726,2]
[389522153,1759695039831,-1268.4,0.0001726,2]
[389522156,1759695039845,-500.0,0.0001726,2]
[389522158,1759695039858,-1579.18,0.0001726,2]
[389522159,1759695039870,-500.0,0.0001726,2]
[389522160,1759695039882,-500.0,0.0001726,2]
[389522161,1759695039893,-571.27,0.0001726,2]
[389522162,1759695039903,-500.0,0.0001726,2]
[389522163,1759695039914,-500.0,0.0001726,2]
[389522164,1759695039926,-500.0,0.0001726,2]
[389522165,1759695039937,-500.0,0.0001726,2]
[389522166,1759695039949,-500.0,0.0001726,2]
[389522167,1759695039961,-500.0,0.0001726,2]
[389522168,1759695039974,-1679.3,0.0001726,2]
[389522169,1759695039986,-1039.92,0.0001726,2]
[389522170,1759695039998,-500.0,0.0001726,2]
[389522171,1759695040010,-498.85988071,0.0001726,2]
[389522172,1759695040024,-500.0,0.0001726,2]
[389522173,1759695040037,-500.0,0.0001726,2]
[389522174,1759695040051,-500.0,0.0001726,2]
[389522175,1759695040063,-1084.19,0.0001726,2]
[389522176,1759695040076,-592.86,0.0001726,2]
[389522178,1759695040087,-500.0,0.0001726,2]
[389522180,1759695040097,-500.0,0.0001726,2]
[389522181,1759695040108,-288.30340522,0.0001726,2]
[389522183,1759695040119,-500.0,0.0001726,2]
[389522184,1759695040130,-500.0,0.0001726,2]
[389522185,1759695040142,-500.0,0.0001726,2]
[389522187,1759695040155,-606.12,0.0001726,2]
[389522189,1759695040166,-1145.97,0.0001726,2]
[389522190,1759695040179,-1723.13,0.0001726,2]
[389522191,1759695040189,-520.69,0.0001726,2]
[389522192,1759695040199,-500.0,0.0001726,2]
[389522193,1759695040213,-500.0,0.0001726,2]
[389522194,1759695040224,-500.0,0.0001726,2]
[389522195,1759695040235,-504.36,0.0001726,2]
[389522196,1759695040249,-719.73,0.0001726,2]
[389522197,1759695040260,-863.89,0.0001726,2]
[389522198,1759695040274,-721.64,0.0001726,2]
[389522199,1759695040287,-500.0,0.0001726,2]
[389522200,1759695040297,-707.49,0.0001726,2]
[389522201,1759695040308,-976.74,0.0001726,2]
[389522202,1759695040319,-500.0,0.0001726,2]
[389522203,1759695040330,-511.43,0.0001726,2]
[389522204,1759695040341,-500.0,0.0001726,2]
[389522205,1759695040351,-500.0,0.0001726,2]
[389522206,1759695040362,-500.0,0.0001726,2]
[389522207,1759695040374,-1869.26,0.0001726,2]
[389522208,1759695040385,-1547.33,0.0001726,2]
[389522210,1759695040397,-500.0,0.0001726,2]
[389522211,1759695040409,-500.0,0.0001726,2]
[389522212,1759695040427,-545.48788581,0.0001726,2]
[389522213,1759695040438,-604.66,0.0001726,2]
[389522214,1759695040450,-583.22,0.0001726,2]
[389522215,1759695040461,-500.0,0.0001726,2]
[389522216,1759695040473,-500.0,0.0001726,2]
[389522217,1759695040484,-500.0,0.0001726,2]
[389522218,1759695040496,-536.42,0.0001726,2]
[389522219,1759695040506,-500.0,0.0001726,2]
[389522220,1759695040518,-599.18,0.0001726,2]
[389522221,1759695040529,-502.23,0.0001726,2]
[389522222,1759695040540,-500.0,0.0001726,2]
[389522223,1759695040551,-1237.88,0.0001726,2]
[389522224,1759695040562,-655.58,0.0001726,2]
[389522225,1759695040573,-1549.5,0.0001726,2]
[389522226,1759695040584,-724.58,0.0001726,2]
[389522227,1759695040595,-1258.7,0.0001726,2]
[389522228,1759695040605,-1537.77,0.0001726,2]
[389522229,1759695040616,-662.32,0.0001726,2]
[389522230,1759695040631,-919.03,0.0001726,2]
[389522231,1759695040643,-881.64,0.0001726,2]
[389522232,1759695040655,-500.0,0.0001726,2]
[389522233,1759695040668,-500.0,0.0001726,2]
[389522234,1759695040680,-766.59,0.0001726,2]
[389522235,1759695040692,-1306.74,0.0001726,2]
[389522236,1759695040704,-824.99,0.0001726,2]
[389522237,1759695040716,-590.06,0.0001726,2]
[389522238,1759695040727,-3252.46,0.0001726,2]
[389522239,1759695040739,-500.0,0.0001726,2]
[389522240,1759695040750,-500.0,0.0001726,2]
[389522241,1759695040761,-500.0,0.0001726,2]
[389522242,1759695040772,-4336.03,0.0001726,2]
[389522243,1759695040784,-500.0,0.0001726,2]
[389522244,1759695040795,-2436.75,0.0001726,2]
[389522245,1759695040806,-751.24,0.0001726,2]
[389522246,1759695040817,-3912.33,0.0001726,2]
[389522247,1759695040828,-678.45,0.0001726,2]
[389522248,1759695040839,-642.43,0.0001726,2]
[389522249,1759695040851,-500.0,0.0001726,2]
[389522250,1759695040862,-500.0,0.0001726,2]
[389522251,1759695040873,-4275.21,0.0001726,2]
[389522252,1759695040885,-2964.26,0.0001726,2]
[389522253,1759695040895,-500.0,0.0001726,2]
[389522254,1759695040907,-506.96,0.0001726,2]
[389522255,1759695040917,-923.94,0.0001726,2]
[389522256,1759695040928,-500.0,0.0001726,2]
[389522257,1759695040939,-851.72,0.0001726,2]
[389522258,1759695040950,-2190.96,0.0001726,2]
[389522259,1759695040961,-539.26,0.0001726,2]
[389522260,1759695040972,-2351.75,0.0001726,2]
[389522261,1759695040983,-888.96,0.0001726,2]
[389522262,1759695040994,-500.86,0.0001726,2]
[389522263,1759695041004,-546.79,0.0001726,2]
[389522264,1759695041015,-2122.18,0.0001726,2]
[389522265,1759695041025,-500.0,0.0001726,2]
[389522266,1759695041035,-500.0,0.0001726,2]
[389522267,1759695041046,-1504.64,0.0001726,2]
[389522268,1759695041057,-1247.62,0.0001726,2]
[389522269,1759695041069,-1475.61,0.0001726,2]
[389522270,1759695041080,-2419.8,0.0001726,2]
[389522271,1759695041091,-807.49,0.0001726,2]
[389522272,1759695041101,-500.0,0.0001726,2]
[389522273,1759695041112,-1212.48,0.0001726,2]
[389522274,1759695041123,-500.0,0.0001726,2]
[389522275,1759695041134,-2750.11,0.0001726,2]
[389522276,1759695041145,-852.69,0.0001726,2]
[389522277,1759695041155,-656.32,0.0001726,2]
[389522278,1759695041166,-500.0,0.0001726,2]
[389522279,1759695041176,-756.76,0.0001726,2]
[389522280,1759695041187,-952.04,0.0001726,2]
[389522281,1759695041198,-4932.75,0.0001726,2]
[389522282,1759695041210,-1018.2,0.0001726,2]
[389522283,1759695041222,-537.82,0.0001726,2]
[389522284,1759695041233,-172.09818491,0.0001726,2]
[389522285,1759695041243,-500.0,0.0001726,2]
[389522286,1759695041254,-2363.06,0.0001726,2]
[389522287,1759695041265,-250.50242612,0.0001726,2]
[389522288,1759695041275,-539.14,0.0001726,2]
[389522289,1759695041286,-3195.95,0.0001726,2]
[389522290,1759695041296,-500.0,0.0001726,2]
[389522291,1759695041307,-500.0,0.0001726,2]
[389522292,1759695041317,-730.2,0.0001726,2]
[389522293,1759695041328,-1064.47,0.0001726,2]
[389522294,1759695041338,-500.0,0.0001726,2]
[389522295,1759695041349,-1707.66,0.0001726,2]
[389522296,1759695041359,-1265.83,0.0001726,2]
[389522297,1759695041370,-1011.9,0.0001726,2]
[389522298,1759695041380,-500.0,0.0001726,2]
[389522299,1759695041390,-1070.51,0.0001726,2]
[389522300,1759695041402,-579.1,0.0001726,2]
[389522301,1759695041412,-1695.766829,0.00017265,2]
[389522302,1759695041423,-372.0,0.00017524,2]
[389522303,1759695041433,-500.0,0.00017534,2]
[389522304,1759695041443,-500.0,0.00017534,2]
[389522305,1759695041453,-500.0,0.00017534,2]
[389522306,1759695041464,-500.0,0.00017534,2]
[389522307,1759695041476,-500.0,0.00017534,2]
[389522308,1759695041486,-502.91,0.00017534,2]
[389522309,1759695041496,-746.59,0.00017534,2]
[389522310,1759695041506,-500.0,0.00017534,2]
[389522311,1759695041516,-500.0,0.00017534,2]
[389522312,1759695041526,-500.0,0.00017534,2]
[389522313,1759695041537,-500.0,0.00017534,2]
[389522314,1759695041547,-500.0,0.00017534,2]
[389522315,1759695041557,-500.0,0.00017534,2]
[389522316,1759695041568,-500.0,0.00017534,2]
[389522317,1759695041577,-738.56,0.00017534,2]
[389522318,1759695041588,-500.0,0.00017534,2]
[389522319,1759695041598,-500.0,0.00017534,2]
[389522320,1759695041609,-500.0,0.00017534,2]
[389522321,1759695041619,-500.0,0.00017534,2]
[389522322,1759695041629,-1268.4,0.00017534,2]
[389522323,1759695041638,-500.0,0.00017534,2]
[389522324,1759695041647,-1579.18,0.00017534,2]
[389522325,1759695041656,-500.0,0.00017534,2]
[389522326,1759695041665,-500.0,0.00017534,2]
[389522327,1759695041675,-571.27,0.00017534,2]
[389522328,1759695041684,-500.0,0.00017534,2]
[389522329,1759695041693,-500.0,0.00017534,2]
[389522330,1759695041702,-500.0,0.00017534,2]
[389522331,1759695041711,-500.0,0.00017534,2]
[389522332,1759695041720,-500.0,0.00017534,2]
[389522333,1759695041729,-500.0,0.00017534,2]
[389522334,1759695041738,-151.0,0.00017534,2]
[389522335,1759695041747,-151.0,0.00017534,2]
[389522336,1759695041757,-151.0,0.00017534,2]
[389522337,1759695041767,-1679.3,0.00017534,2]
[389522338,1759695041776,-151.0,0.00017534,2]
[389522339,1759695041785,-1039.92,0.00017534,2]
[389522340,1759695041795,-500.0,0.00017534,2]
[389522341,1759695041804,-151.889801,0.00017534,2]
[389522342,1759695041813,-500.0,0.00017534,2]
[389522343,1759695041822,-500.0,0.00017534,2]
[389522344,1759695042105,-500.0,0.00017534,2]
[389522345,1759695042116,-1084.19,0.00017534,2]
[389522346,1759695042125,-592.86,0.00017534,2]
[389522347,1759695042139,-151.0,0.00017534,2]
[389522348,1759695042148,-500.0,0.00017534,2]
[389522349,1759695042159,-151.0,0.00017534,2]
[389522350,1759695042168,-291.947041,0.00017534,2]
[389522351,1759695042177,-151.0,0.00017534,2]
[389522352,1759695042186,-500.0,0.00017534,2]
[389522353,1759695042196,-151.0,0.00017534,2]
[389522354,1759695042205,-500.0,0.00017534,2]
[389522355,1759695042218,-500.0,0.00017534,2]
[389522356,1759695042228,-500.0,0.00017534,2]
[389522357,1759695042237,-500.0,0.00017534,2]
[389522358,1759695042247,-606.12,0.00017534,2]
[389522359,1759695042255,-151.0,0.00017534,2]
[389522360,1759695042268,-1145.97,0.00017534,2]
[389522361,1759695042277,-1723.13,0.00017534,2]
[389522362,1759695042291,-520.69,0.00017534,2]
[389522363,1759695042300,-500.0,0.00017534,2]
[389522364,1759695042309,-500.0,0.00017534,2]
[389522365,1759695042317,-151.0,0.00017534,2]
[389522366,1759695042326,-500.0,0.00017534,2]
[389522367,1759695042336,-151.0,0.00017534,2]
[389522368,1759695042345,-151.0,0.00017534,2]
[389522369,1759695042354,-504.36,0.00017534,2]
[389522370,1759695042363,-719.73,0.00017534,2]
[389522371,1759695042372,-863.89,0.00017534,2]
[389522372,1759695042381,-721.64,0.00017534,2]
[389522373,1759695042390,-500.0,0.00017534,2]
[389522374,1759695042400,-707.49,0.00017534,2]
[389522375,1759695042410,-151.0,0.00017534,2]
[389522376,1759695042419,-151.0,0.00017534,2]
[389522377,1759695042428,-500.0,0.00017534,2]
[389522378,1759695042437,-976.74,0.00017534,2]
[389522379,1759695042447,-151.0,0.00017534,2]
[389522380,1759695042456,-151.0,0.00017534,2]
[389522381,1759695042465,-151.0,0.00017534,2]
[389522382,1759695042474,-151.0,0.00017534,2]
[389522383,1759695042484,-151.0,0.00017534,2]
[389522384,1759695042493,-151.0,0.00017534,2]
[389522385,1759695042503,-151.0,0.00017534,2]
[389522386,1759695042512,-500.0,0.00017534,2]
[389522387,1759695042521,-511.43,0.00017534,2]
[389522388,1759695042530,-500.0,0.00017534,2]
[389522389,1759695042539,-151.0,0.00017534,2]
[389522390,1759695042547,-151.0,0.00017534,2]
[389522391,1759695042556,-500.0,0.00017534,2]
[389522392,1759695042565,-500.0,0.00017534,2]
[389522393,1759695042574,-1869.26,0.00017534,2]
[389522394,1759695042583,-1547.33,0.00017534,2]
[389522395,1759695042592,-500.0,0.00017534,2]
[389522396,1759695042601,-500.0,0.00017534,2]
[389522397,1759695042610,-604.66,0.00017534,2]
[389522398,1759695042619,-151.0,0.00017534,2]
[389522399,1759695042629,-151.0,0.00017534,2]
[389522400,1759695042639,-151.0,0.00017534,2]
[389522401,1759695042649,-229.12188916,0.00017534,2]
[389522402,1759695042662,-151.0,0.00017534,2]
[389522403,1759695042672,-294.54371362,0.00017534,2]
[389522404,1759695042683,-155.610953,0.00017534,2]
[389522405,1759695042694,-500.0,0.00017534,2]
[389522406,1759695042703,-500.0,0.00017534,2]
[389522407,1759695042713,-500.0,0.00017534,2]
[389522408,1759695042723,-500.0,0.00017534,2]
[389522409,1759695042732,-151.0,0.00017534,2]
[389522410,1759695042742,-151.0,0.00017534,2]
[389522411,1759695042751,-246.344456,0.00017534,2]
[389522412,1759695042760,-161.898412,0.00017534,2]
[389522413,1759695042769,-151.0,0.00017534,2]
[389522414,1759695042778,-151.0,0.00017534,2]
[389522415,1759695042787,-178.71656,0.00017534,2]
[389522416,1759695042796,-151.0,0.00017534,2]
[389522417,1759695042806,-178.71656,0.00017534,2]
[389522418,1759695042815,-151.0,0.00017534,2]
[389522419,1759695042826,-151.0,0.00017534,2]
[389522420,1759695042835,-178.71656,0.00017534,2]
[389522421,1759695042844,-151.0,0.00017534,2]
[389522422,1759695042853,-178.71656,0.00017534,2]
[389522423,1759695042862,-583.22,0.00017534,2]
[389522425,1759695042871,-151.0,0.00017534,2]
[389522427,1759695042881,-500.0,0.00017534,2]
[389522428,1759695042890,-500.0,0.00017534,2]
[389522431,1759695042899,-500.0,0.00017534,2]
[389522434,1759695042908,-536.42,0.00017534,2]
[389522436,1759695042917,-500.0,0.00017534,2]
[389522437,1759695042926,-500.0,0.00017534,2]
[389522438,1759695042936,-1588.0,0.00017534,2]
[389522439,1759695042946,-151.0,0.00017534,2]
[389522440,1759695042963,-151.0,0.00017534,2]
[389522441,1759695042974,-599.18,0.00017534,2]
[389522442,1759695042988,-500.0,0.00017534,2]
[389522444,1759695042997,-502.23,0.00017534,2]
[389522446,1759695043007,-500.0,0.00017534,2]
[389522447,1759695043015,-500.0,0.00017534,2]
[389522448,1759695043025,-151.0,0.00017534,2]
[389522449,1759695043034,-151.0,0.00017534,2]
[389522450,1759695043043,-153.189557,0.00017534,2]
[389522452,1759695043052,-1237.88,0.00017534,2]
[389522454,1759695043061,-151.0,0.00017534,2]
[389522456,1759695043069,-151.0,0.00017534,2]
[389522458,1759695043078,-151.0,0.00017534,2]
[389522459,1759695043087,-151.0,0.00017534,2]
[389522460,1759695043097,-655.58,0.00017534,2]
[389522461,1759695043106,-179.405922,0.00017534,2]
[389522462,1759695043114,-151.0,0.00017534,2]
[389522463,1759695043124,-1549.5,0.00017534,2]
[389522464,1759695043133,-151.0,0.00017534,2]
[389522465,1759695043142,-724.58,0.00017534,2]
[389522466,1759695043151,-1258.7,0.00017534,2]